[Event "Rapid Shavuot-A 2023"]
[Site "Ramat Gan"]
[Date "2023.05.25"]
[Round "5.10"]
[White "Kochavi, Ori"]
[Black "Dezent, Eyal"]
[Result "1/2-1/2"]
[ECO "B12"]
[WhiteElo "2423"]
[BlackElo "1773"]
[Annotator "TA"]
[PlyCount "113"]
[EventDate "2023.05.19"]
[EventType "swiss"]
[EventCountry "ISR"]
[SourceTitle "playchess.com"]
[Source "ChessBase"]
[SourceQuality "1"]
[TimeControl "900+5"]

{[%evp 12,113,10,14,20,0,0,-97,-95,-142,-139,-168,-160,-141,-55,-65,0,-45,-33,-27,-29,-26,-29,-45,46,55,41,51,52,58,47,0,26,0,48,-28,-12,-22,-36,-74,-90,-125,0,0,0,0,-8,-8,-8,-125,-81,-101,-106,-72,-89,-135,213,220,124,102,220,222,375,0,0,-204,0,0,75,87,1373,-8,-8,-564,0,0,0,0,0,0,0,0,0,0,0,0,0,0,0,0,0,0,0,0,0,0,0,0,0,0,0,0,0,0]} 1. e4 {[%emt 0:00:03]} c6 {[%emt 0:00:01]} 2. Nf3 {[%emt 0:00:00]} d5 {[%emt 0:00:01]} 3. e5 {[%emt 0:00:01]} Bf5 {[%emt 0:00:03]} 4. Be2 {[%emt 0:00:05]} e6 {[%emt 0:00:08]} 5. O-O {[%emt 0:00:03]} Ne7 {[%emt 0:00:23]} 6. d4 {[%emt 0:00:42]} c5 {[%emt 0:00:24]} 7. dxc5 {[%emt 0:01:32]} Nec6 {[%emt 0:00:25] B12: Caro-Kann: Advance Variation.} 8. c4 {[%emt 0:01:14]} d4 {[%emt 0:00:36] [#]} 9. Qa4 $146 {[%emt 0:00:03]} (9. Bd3 $11) ({Predecessor:} 9. Qb3 d3 10. Rd1 Nd7 11. Qxb7 dxe2 12. Rxd7 Qxd7 13. Qxa8+ Nd8 14. Bd2 Bxc5 15. Nc3 {0-1 Lawson,E (2328)-Melkumyan,H (2645) Titled Tuesday intern op 28th Feb Late blitz 2023 (5)}) 9... Bxc5 {[%emt 0:00:58] Black is better.} 10. a3 {[%emt 0:00:16]} (10. Qb5 $142 Qb6 11. Bf4) 10... O-O $17 {[%emt 0:02:41]} 11. Bg5 {[%emt 0:00:08]} Qc7 {[%emt 0:00:34]} 12. b4 {[%emt 0:00:02]} Be7 {[%emt 0:00:40]} (12... d3 $17 13. Bd1 Bd4 14. Nxd4 Nxd4) 13. Bxe7 $15 {[%emt 0:00:04]} Qxe7 {[%emt 0:00:02]} (13... Nxe7 $15 14. Nxd4 Nbc6) 14. Rd1 {[%emt 0:00:27]} Nd7 {[%emt 0:00:52]} 15. Nxd4 {[%emt 0:00:23]} Nxd4 {[%emt 0:00:03]} (15... Ncxe5 16. Nxf5 exf5 17. Nc3 $14) 16. Rxd4 {[%emt 0:00:01]} Nxe5 {[%emt 0:00:02]} 17. Nc3 {[%emt 0:00:01]} Rfd8 {[%emt 0:00:14]} (17... Qf6 $15 18. Rdd1 Nxc4 19. Bxc4 Qxc3) 18. Rxd8+ $1 $14 {[%emt 0:00:07]} Qxd8 {[%emt 0:00:55]} 19. Rd1 {[%emt 0:00:01] Dodges Qd4} Qf6 {[%emt 0:00:12]} 20. Nb5 {[%emt 0:00:15]} h5 {[%emt 0:01:35]} 21. Nc7 {[%emt 0:00:13]} (21. Nd6 $14) 21... Rc8 {[%emt 0:00:13]} 22. Qxa7 {[%emt 0:00:03]} (22. Ne8 $5 {[%cal Re8f6]} Qg6 23. Nd6 $11) 22... Be4 {[%emt 0:00:19]} (22... Bd3 $11 23. Bxd3 (23. Qxb7 $2 Bxe2 24. Qxc8+ Kh7 $19) 23... Nxd3) 23. f3 {[%emt 0:04:05]} (23. Qe3 $1 $14) 23... Nxf3+ $11 {[%emt 0:01:18][%mdl 64] Demolition} (23... Bxf3 $2 24. gxf3 Qf4 25. Kh1 Nxc4 26. Nb5 $18 (26. Qxb7 Rxc7 27. Qb8+ Kh7 $11)) 24. Bxf3 {[%emt 0:00:23]} ({Reject} 24. gxf3 Bxf3 25. Bxf3 Qxf3 $15) 24... Bxf3 {[%emt 0:00:03]} 25. gxf3 {[%emt 0:01:36]} Qxf3 {[%emt 0:00:31]} 26. Rd7 {[%emt 0:00:02]} Qc6 {[%emt 0:00:43]} ({Better is} 26... e5 $1 $17 {And now ...Qg4+ would win.} 27. Qa4 (27. Rd2 $2 Qg4+ 28. Rg2 Qd1+ 29. Kf2 Qd2+ 30. Kf1 Qd1+ 31. Kf2 Qd2+ 32. Kf1 Qc1+ 33. Kf2 Qxc4 $19) 27... h4) 27. Qd4 {[%emt 0:00:30]} Rxc7 {[%emt 0:00:12][%mdl 4096] Endgame KQR-KQR} 28. Rd8+ {[%emt 0:00:01]} Kh7 {[%emt 0:00:01]} 29. Qd3+ {[%emt 0:00:01]} f5 {[%emt 0:00:19]} 30. Qh3 {[%emt 0:00:06] Active counter play!} (30. Qe2 $11 Kg6 31. c5) 30... g6 {[%emt 0:00:38]} (30... Qxc4 $2 31. Qxh5#) 31. Qc3 {[%emt 0:00:13][%csl Gd8][%cal Rc3h8]} Rg7 $1 {[%emt 0:00:01]} (31... Qxc4 $2 32. Rh8#) 32. c5 {[%emt 0:00:54]} Qe4 {[%emt 0:00:10]} 33. Qd4 {[%emt 0:01:06]} (33. Qf6 $142) 33... Qxd4+ $4 {[%emt 0:00:19][%mdl 8192]} (33... Qe1+ $17 {keeps the pressure on.} 34. Kg2 e5) 34. Rxd4 $17 {[%emt 0:00:01] KR-KR} e5 {[%emt 0:00:00]} 35. Rc4 {[%emt 0:00:01]} e4 {[%emt 0:00:13]} (35... Kg8 $16) 36. b5 $18 {[%emt 0:00:01][%cal Bb4b5,Bb5b6][%mdl 32]} e3 $2 {[%emt 0:00:12]} (36... Re7) 37. c6 $2 {[%emt 0:00:34]} (37. b6 $18 Rd7 38. Kf1) 37... bxc6 $11 {[%emt 0:00:20]} 38. Rxc6 {[%emt 0:00:04] [#]} (38. b6 $11 {and White stays safe.}) 38... Ra7 $2 {[%emt 0:00:25]} (38... Rd7 $1 $19 {[%cal Rd7d1] Threatens to win with ...Rd1+.} 39. Kg2 Rd2+ {[%mdl 64] Deflection} 40. Kf3 Rxh2) 39. Rc3 $1 {[%emt 0:00:02]} f4 {[%emt 0:00:02]} (39... Rb7 $11 {keeps the balance.}) 40. b6 $16 {[%emt 0:00:23]} Ra8 {[%emt 0:00:01][%mdl 8192]} (40... Ra5 $16 41. Rb3 Rg5+ 42. Kf1 f3 43. Rxe3 (43. b7 e2+ 44. Kf2 Rg2+ 45. Kxf3 e1=Q 46. Kxg2 Qe2+ 47. Kg3 h4+ 48. Kf4 Qc4+ 49. Kg5 Qxb3 50. Kxh4 Qxb7 51. Kg3 Qe4 52. a4 Kh6 53. a5 Kg5 54. a6 Qe3+ 55. Kg2 Kf4 56. a7 Qxa7 57. Kh1 Qf2 58. h4 Kg3 59. h5 Qh2#) 43... Rb5) 41. h4 $2 {[%emt 0:00:33]} ({White must play} 41. b7 $18 Rd8 42. Rc8 Rd1+ 43. Kg2 Rd2+ 44. Kh3) 41... g5 {[%emt 0:00:14]} 42. hxg5 {[%emt 0:00:06][%mdl 8192] [#]} (42. b7 $11 {and White has nothing to worry.} Rb8 43. Rc7+ Kg6 44. a4 gxh4 45. a5) 42... Kg6 $2 {[%emt 0:00:01]} (42... Re8 $1 $19 {( -> ...e2)} 43. Rc1 f3) 43. Kg2 $11 {[%emt 0:00:13] The position is equal.} (43. b7 {seems wilder.} Rb8 44. Rc7 h4 45. a4) 43... Kxg5 {[%emt 0:00:20]} 44. Kf3 {[%emt 0:00:01]} (44. b7 $5 Rb8 $8 45. Rc7 $15) 44... Re8 {[%emt 0:00:06]} 45. Rc5+ {[%emt 0:00:12]} Kf6 {[%emt 0:00:24]} 46. Rc6+ {[%emt 0:00:40]} Kf5 {[%emt 0:00:05]} 47. Rc5+ {[%emt 0:00:04]} Kf6 {[%emt 0:00:02]} 48. Rc2 {[%emt 0:00:43][%cal Oa3a4] a4! is the strong threat.} Rb8 {[%emt 0:00:15]} 49. Rb2 {[%emt 0:00:03][%cal Oa3a4]} Ke5 {[%emt 0:00:17]} 50. a4 {[%emt 0:00:03][%cal Ba3a4,Ba4a5][%mdl 32] a5 would be deadly.} Kd6 {[%emt 0:00:08]} 51. a5 {[%emt 0:00:04][%cal Oa5a6] Black must now prevent a6!} Kc6 $1 {[%emt 0:00:02]} 52. Kxf4 {[%emt 0:00:08]} Re8 {[%emt 0:00:24]} 53. Re2 {[%emt 0:00:25]} Kb5 {[%emt 0:00:07]} 54. Rxe3 {[%emt 0:00:09]} Rf8+ {[%emt 0:00:01]} 55. Ke5 {[%emt 0:00:08]} Kxa5 {[%emt 0:00:03]} 56. Rb3 {[%emt 0:00:07] White wants to mate with b7.} Rb8 {[%emt 0:00:04]} 57. Kf4 {[%emt 0:00:15] Weighted Error Value: White=0.49/Black=0.49} 1/2-1/2

[Event "Rapid Shavuot-A 2023"]
[Site "Ramat Gan"]
[Date "2023.05.25"]
[Round "5.11"]
[White "Zemach, Nadav"]
[Black "Uritsky, Yonathan"]
[Result "1/2-1/2"]
[ECO "A43"]
[WhiteElo "2383"]
[BlackElo "2118"]
[Annotator "TA"]
[PlyCount "107"]
[EventDate "2023.05.19"]
[EventType "swiss"]
[EventCountry "ISR"]
[SourceTitle "playchess.com"]
[Source "ChessBase"]
[SourceQuality "1"]
[TimeControl "900+5"]

{[%evp 14,107,37,0,-6,10,32,22,33,22,46,45,27,0,0,0,0,0,2,-93,-88,-93,-94,-94,-93,-98,-77,-105,-109,-98,-63,-63,-64,-64,-64,-79,-65,-90,-82,-120,-6,-122,-26,-24,-31,-25,-33,-22,-29,-27,-31,-27,-41,-51,-51,-48,-48,-62,-16,-72,-73,-90,-52,-61,-48,-48,-48,-48,-48,-54,-54,-54,-61,-73,-73,-446,-453,-1570,-1245,-5191,-431,-1732,0,-5244,0,-5147,-576,-576,0,0,0,0,0,0,0,0]} 1. d4 {[%emt 0:00:05]} Nf6 {[%emt 0:00:05]} 2. Nf3 {[%emt 0:00:05]} c5 {[%emt 0:00:05]} 3. d5 {[%emt 0:00:05]} g6 {[%emt 0:00:08]} 4. Nc3 {[%emt 0:00:30]} Bg7 {[%emt 0:00:02]} 5. e4 {[%emt 0:00:02]} d6 {[%emt 0:00:01]} 6. Be2 {[%emt 0:00:08]} O-O {[%emt 0:00:02]} 7. O-O {[%emt 0:00:02]} e6 {[%emt 0:00:01]} 8. h3 {[%emt 0:00:08]} exd5 {[%emt 0:00:17] A43: Schmid Benoni.} 9. exd5 {[%emt 0:00:02]} Nbd7 {[%emt 0:00:07]} 10. Bf4 {[%emt 0:00:03]} Nb6 {[%emt 0:00:18]} 11. a4 {[%emt 0:00:05] [#]} a5 $146 {[%emt 0:00:22]} ({Predecessor:} 11... Re8 12. Bb5 Bd7 13. Qd3 Bxb5 14. axb5 Qd7 15. Nd2 Rec8 16. Nc4 Nxc4 17. Qxc4 Nh5 {0-1 Lucas,M (2086)-Speck,J (1433) Norderstedt op 2013 (4)}) 12. Re1 {[%emt 0:00:33]} Re8 {[%emt 0:00:03]} 13. Bh2 {[%emt 0:00:27]} Ne4 {[%emt 0:01:59]} 14. Nxe4 {[%emt 0:00:03]} Rxe4 {[%emt 0:00:02]} 15. c3 {[%emt 0:00:03]} Bd7 {[%emt 0:00:13][%cal Rd7a4]} 16. Bb5 {[%emt 0:02:53]} (16. Bxd6 Bxa4 17. Rxa4 Nxa4 $17) (16. Qc2 $11 Rxa4 17. Rad1 (17. Bxd6 $2 Bf5 $19)) 16... Rxe1+ $17 {[%emt 0:00:02]} 17. Qxe1 {[%emt 0:00:02]} Bxb5 $1 {[%emt 0:00:18]} (17... Nxd5 $6 18. Rd1 Nc7 19. Rxd6 (19. Bxd6 Nxb5 20. axb5 Bxb5 $11) 19... Nxb5 20. axb5 $11) 18. axb5 {[%emt 0:00:02]} Qd7 {[%emt 0:00:08]} (18... Nxd5 19. Rd1 Nf6 20. Rxd6 $14 (20. Bxd6 Qb6 $11)) 19. Qe2 {[%emt 0:02:23]} Re8 {[%emt 0:00:15]} (19... Nxd5 $6 20. Rd1 Re8 21. Qf1 $11) 20. Qc2 {[%emt 0:00:21]} Qxb5 {[%emt 0:01:03] Threatens to win with ...Re2.} ({Of course not} 20... Nxd5 $6 21. Qd3 Nb6 22. Rxa5 $15) 21. Bxd6 {[%emt 0:00:18]} Nxd5 {[%emt 0:01:48]} 22. c4 {[%emt 0:00:38]} Qc6 {[%emt 0:00:33]} ({Reject} 22... Qxb2 23. Qxb2 Bxb2 24. Rxa5 $11) 23. cxd5 {[%emt 0:00:41]} Qxd6 {[%emt 0:00:01]} 24. Rxa5 {[%emt 0:00:33]} Bd4 {[%emt 0:00:49]} ({But not} 24... Qxd5 $6 25. Rxc5 Qd6 26. Rc8 $11) 25. Qd2 {[%emt 0:02:41]} Qxd5 {[%emt 0:00:35]} 26. Rb5 {[%emt 0:01:31][%cal Od2d4]} Re7 {[%emt 0:01:42]} ({Black should play} 26... Re4 $17 {Strongly threatening ...Qc4.} 27. Nxd4 Rxd4) 27. b4 {[%emt 0:00:56]} (27. Qxd4 $11 Qxd4 28. Nxd4 cxd4 29. Kf1) 27... Qc4 {[%emt 0:00:41]} ({Black should try} 27... Qc6 $17 28. Nxd4 cxd4) 28. Nxd4 $11 {[%emt 0:00:17]} Qxd4 {[%emt 0:01:09]} 29. Qxd4 {[%emt 0:00:08]} cxd4 {[%emt 0:00:02][%mdl 4096] Endgame KR-KR} 30. Rd5 {[%emt 0:00:01]} Re4 {[%emt 0:01:20][%cal Od4d3]} 31. f3 {[%emt 0:00:02]} Rf4 {[%emt 0:00:02][%cal Od4d3]} 32. Kf2 {[%emt 0:00:50] [#]} d3 $1 {[%emt 0:00:09]} 33. b5 {[%emt 0:00:08][%cal Of2e3]} (33. Rb5 d2) 33... Rb4 $1 {[%emt 0:00:01]} 34. Ke3 {[%emt 0:00:08]} Rb3 {[%emt 0:00:03]} 35. h4 {[%emt 0:00:24]} Kg7 {[%emt 0:00:10]} (35... Kf8 $15) 36. Rxd3 {[%emt 0:00:28]} (36. g4 $11 {keeps the balance.}) 36... Rxb5 $17 {[%emt 0:00:01]} 37. Rd6 {[%emt 0:00:05]} h5 {[%emt 0:00:08]} 38. g4 {[%emt 0:00:04]} Rb4 {[%emt 0:00:07]} 39. gxh5 {[%emt 0:00:14]} gxh5 {[%emt 0:00:02][%cal Bg6h5,Bh5h4,Bh4h3][%mdl 32]} 40. Rd5 {[%emt 0:00:07]} Kg6 {[%emt 0:00:18]} 41. Rg5+ {[%emt 0:00:02]} Kh6 {[%emt 0:00:01]} 42. Rf5 {[%emt 0:00:01]} Rxh4 {[%emt 0:00:11]} 43. Rxf7 {[%emt 0:00:02] [#]} Rb4 $1 {[%emt 0:00:03]} 44. f4 $2 {[%emt 0:00:04][%mdl 8192]} (44. Rd7 $17 {is a better chance.}) 44... h4 $19 {[%emt 0:00:07]} 45. Kf3 {[%emt 0:00:05] [#]} (45. Kf2 $142 Rb2+ 46. Kg1) 45... h3 $1 {[%emt 0:00:02]} 46. Kg3 {[%emt 0:00:06]} Rb3+ {[%emt 0:00:01]} 47. Kh2 {[%emt 0:00:01]} b5 $2 {[%emt 0:00:02]} (47... Kg6 $19 48. Rf8 b5) 48. f5 $2 {[%emt 0:00:14][%mdl 8192]} (48. Rf5 $11) 48... b4 $2 {[%emt 0:00:07]} (48... Kg5 $19 49. Rf8 b4) 49. f6 $2 {[%emt 0:00:02][%mdl 8192]} (49. Re7 $11) 49... Kg6 {[%emt 0:00:02]} (49... Kg5 $142 50. Rf8 Kg6 51. Rg8+ Kxf6) 50. Rf8 {[%emt 0:00:01]} Rf3 $2 {[%emt 0:01:02]} (50... Kf5 $19 51. Kh1 Rb2) 51. Rb8 $11 {[%emt 0:00:08] The position is equal.} b3 {[%emt 0:00:05]} 52. Rb6 {[%emt 0:00:05]} Kg5 {[%emt 0:00:49]} 53. f7 {[%emt 0:00:06][%mdl 64] Deflection} Rxf7 {[%emt 0:00:14] ...Rf3 is the strong threat.} 54. Rxb3 {[%emt 0:00:02] Weighted Error Value: White=0.85/Black=0.56} 1/2-1/2

[Event "Rapid Shavuot-A 2023"]
[Site "Ramat Gan"]
[Date "2023.05.25"]
[Round "5.12"]
[White "Lebedinsky, Eduard"]
[Black "Andreev, Dmitri"]
[Result "0-1"]
[ECO "A58"]
[WhiteElo "2122"]
[BlackElo "2166"]
[Annotator "NA RC"]
[PlyCount "144"]
[EventDate "2023.05.19"]
[EventType "swiss"]
[EventCountry "ISR"]
[SourceTitle "playchess.com"]
[Source "ChessBase"]
[SourceQuality "1"]
[TimeControl "900+5"]

1. d4 {[%emt 0:00:03]} Nf6 {[%emt 0:00:07]} 2. c4 {[%emt 0:00:01]} c5 {[%emt 0:00:04]} 3. d5 {[%emt 0:00:01]} b5 {[%emt 0:00:04]} 4. cxb5 {[%emt 0:00:01]} a6 {[%emt 0:00:04]} 5. bxa6 {[%emt 0:00:02]} g6 {[%emt 0:00:12]} 6. Nc3 {[%emt 0:00:01]} Bg7 {[%emt 0:00:05]} 7. e4 {[%emt 0:00:01]} O-O {[%emt 0:00:07]} 8. e5 {[%emt 0:00:46]} Ne8 {[%emt 0:00:08]} 9. Nf3 {[%emt 0:00:04]} d6 {[%emt 0:01:35]} 10. Bf4 {[%emt 0:00:18]} Bg4 {[%emt 0:01:16]} 11. exd6 {[%emt 0:00:02]} Nxd6 {[%emt 0:00:38]} 12. Be2 {[%emt 0:00:17]} Nxa6 {[%emt 0:01:16]} 13. O-O {[%emt 0:00:05]} Bxf3 14. Bxf3 {[%emt 0:00:01]} Rb8 {[%emt 0:02:49]} 15. Qe2 {[%emt 0:00:10]} Qb6 {[%emt 0:02:33]} 16. Nd1 {[%emt 0:04:59]} Rb7 {[%emt 0:00:47]} 17. Rc1 {[%emt 0:00:37]} Qa5 {[%emt 0:01:27]} 18. a3 {[%emt 0:01:10]} Nf5 {[%emt 0:00:54]} 19. d6 {[%emt 0:01:32]} Nd4 {[%emt 0:00:32]} 20. Qe4 {[%emt 0:00:20]} Rd7 {[%emt 0:00:31]} 21. dxe7 {[%emt 0:00:19]} Re8 {[%emt 0:00:04]} 22. Qd3 {[%emt 0:00:57]} Rdxe7 {[%emt 0:00:16]} 23. b4 {[%emt 0:00:24]} cxb4 {[%emt 0:00:10]} 24. Bd6 {[%emt 0:00:18]} Rd7 {[%emt 0:00:14]} 25. Bxb4 {[%emt 0:00:12]} Nxb4 {[%emt 0:00:13]} 26. axb4 {[%emt 0:00:01]} Qxb4 {[%emt 0:00:08]} 27. Qc4 {[%emt 0:01:13]} Qd2 {[%emt 0:00:20]} 28. Ne3 {[%emt 0:00:19]} Nxf3+ {[%emt 0:00:25]} 29. gxf3 {[%emt 0:00:01]} Qb2 {[%emt 0:00:15]} 30. Rcd1 {[%emt 0:00:12]} Rxd1 {[%emt 0:00:05]} 31. Rxd1 {[%emt 0:00:01]} Qf6 {[%emt 0:00:05]} 32. Kg2 {[%emt 0:00:07]} h5 {[%emt 0:00:01]} 33. f4 {[%emt 0:00:08]} Bh6 {[%emt 0:00:02]} 34. Rd4 {[%emt 0:00:14]} Kg7 {[%emt 0:00:05]} 35. Nd5 {[%emt 0:00:08]} Qf5 {[%emt 0:00:03]} 36. f3 {[%emt 0:00:11]} h4 {[%emt 0:00:11]} 37. h3 {[%emt 0:00:03]} Re1 {[%emt 0:00:06]} 38. Re4 {[%emt 0:00:09]} Rxe4 {[%emt 0:00:06]} 39. Qxe4 {[%emt 0:00:02]} Qxe4 {[%emt 0:00:08]} 40. fxe4 {[%emt 0:00:02]} f5 {[%emt 0:00:08]} 41. e5 {[%emt 0:00:05]} Kf7 {[%emt 0:00:04]} 42. Kf3 {[%emt 0:00:02]} Bf8 {[%emt 0:00:04]} 43. Ke3 {[%emt 0:00:10]} Ke6 {[%emt 0:00:02]} 44. Nf6 {[%emt 0:00:08]} Be7 {[%emt 0:00:04]} 45. Nh7 {[%emt 0:00:11]} Kd5 {[%emt 0:00:22]} 46. Nf6+ {[%emt 0:00:40]} Bxf6 {[%emt 0:00:00]} 47. exf6 {[%emt 0:00:01]} Ke6 {[%emt 0:00:00]} 48. Kd4 {[%emt 0:00:01]} Kxf6 {[%emt 0:00:00]} 49. Kd5 {[%emt 0:00:01]} Kf7 {[%emt 0:00:00]} 50. Ke5 {[%emt 0:00:16]} Ke7 {[%emt 0:00:00]} 51. Kd5 {[%emt 0:00:00]} Kf6 {[%emt 0:00:00]} 52. Kd4 {[%emt 0:00:06]} Ke6 {[%emt 0:00:09]} 53. Kc5 {[%emt 0:00:07]} Kf6 {[%emt 0:00:02]} 54. Kd5 {[%emt 0:00:17]} Ke7 {[%emt 0:00:19]} 55. Ke5 {[%emt 0:00:03]} Kf7 {[%emt 0:00:02]} 56. Kd5 {[%emt 0:00:03]} Kf6 {[%emt 0:00:03]} 57. Kd6 {[%emt 0:00:13]} g5 {[%emt 0:00:01]} 58. fxg5+ {[%emt 0:00:00]} Kxg5 {[%emt 0:00:02]} 59. Ke5 {[%emt 0:00:01]} Kg6 {[%emt 0:00:07]} 60. Kf4 {[%emt 0:00:05]} Kf6 {[%emt 0:00:01]} 61. Kf3 {[%emt 0:00:01]} Ke5 62. Ke3 f4+ {[%emt 0:00:06]} 63. Kf3 {[%emt 0:00:02]} Kf5 {[%emt 0:00:01]} 64. Kf2 {[%emt 0:00:00]} Ke4 {[%emt 0:00:02]} 65. Ke2 {[%emt 0:00:01]} f3+ {[%emt 0:00:02]} 66. Kf2 {[%emt 0:00:01]} Kf4 {[%emt 0:00:03]} 67. Kf1 {[%emt 0:00:10]} Kg3 {[%emt 0:00:01]} 68. Kg1 {[%emt 0:00:01]} Kxh3 {[%emt 0:00:03]} 69. Kf2 {[%emt 0:00:01]} Kg4 {[%emt 0:00:01]} 70. Kf1 {[%emt 0:00:09]} Kg3 {[%emt 0:00:02]} 71. Kg1 {[%emt 0:00:05]} f2+ {[%emt 0:00:02]} 72. Kf1 {[%emt 0:00:06]} h3 {[%emt 0:00:02]} 0-1

[Event "Rapid Shavuot-A 2023"]
[Site "Ramat Gan"]
[Date "2023.05.25"]
[Round "5.14"]
[White "Michaeli, Omri"]
[Black "Katz, Kiril"]
[Result "0-1"]
[ECO "B32"]
[WhiteElo "1874"]
[BlackElo "2016"]
[Annotator "NA RC"]
[PlyCount "118"]
[EventDate "2023.05.19"]
[EventType "swiss"]
[EventCountry "ISR"]
[SourceTitle "playchess.com"]
[Source "ChessBase"]
[SourceQuality "1"]
[TimeControl "900+5"]

1. e4 {[%emt 0:00:01]} c5 {[%emt 0:00:01]} 2. Nf3 {[%emt 0:00:02]} Nc6 {[%emt 0:00:00]} 3. d4 {[%emt 0:00:03]} cxd4 {[%emt 0:00:01]} 4. Nxd4 {[%emt 0:00:02]} e5 {[%emt 0:00:01]} 5. Nb5 {[%emt 0:00:02]} a6 {[%emt 0:00:01]} 6. Nd6+ {[%emt 0:00:02]} Bxd6 7. Qxd6 {[%emt 0:00:02]} Qf6 {[%emt 0:00:02]} 8. Qd2 {[%emt 0:00:15]} Nge7 {[%emt 0:00:03]} 9. Nc3 {[%emt 0:00:07]} Qg6 {[%emt 0:00:15]} 10. f3 {[%emt 0:00:30]} Nd4 {[%emt 0:00:52]} 11. Qf2 {[%emt 0:00:32]} Qb6 {[%emt 0:01:24]} 12. Bc4 {[%emt 0:00:44]} Qb4 {[%emt 0:00:53]} 13. Bd3 {[%emt 0:01:05]} d6 {[%emt 0:00:28]} 14. a3 {[%emt 0:00:28]} Qb6 {[%emt 0:00:02]} 15. O-O {[%emt 0:00:25]} Be6 {[%emt 0:00:34]} 16. f4 {[%emt 0:00:51]} f6 {[%emt 0:03:06]} 17. Be3 {[%emt 0:00:43]} O-O {[%emt 0:01:04]} 18. Rfd1 {[%emt 0:02:40]} f5 {[%emt 0:00:34]} 19. Bxd4 {[%emt 0:01:15]} Qxd4 {[%emt 0:00:50]} 20. Qxd4 exd4 {[%emt 0:00:01]} 21. Ne2 {[%emt 0:01:10]} fxe4 {[%emt 0:00:43]} 22. Bxe4 {[%emt 0:00:06]} Bf5 {[%emt 0:00:01]} 23. Bxf5 {[%emt 0:00:24]} Nxf5 {[%emt 0:00:03]} 24. Nxd4 {[%emt 0:00:13]} Ne3 {[%emt 0:00:00]} 25. Re1 {[%emt 0:01:36]} Rxf4 {[%emt 0:00:02]} 26. Rxe3 {[%emt 0:00:02]} Rxd4 {[%emt 0:00:00]} 27. Rae1 {[%emt 0:00:19]} Rc8 {[%emt 0:01:49]} 28. Re8+ {[%emt 0:00:34]} Rxe8 {[%emt 0:00:01]} 29. Rxe8+ {[%emt 0:00:01]} Kf7 {[%emt 0:00:00]} 30. Re2 {[%emt 0:00:03]} b5 {[%emt 0:00:25]} 31. Kf2 {[%emt 0:00:06]} a5 {[%emt 0:00:09]} 32. Ke3 {[%emt 0:00:16]} Rd5 {[%emt 0:00:06]} 33. Rd2 {[%emt 0:00:33]} Rc5 {[%emt 0:00:25]} 34. c3 {[%emt 0:00:31]} Ke6 {[%emt 0:00:06]} 35. Rd4 {[%emt 0:00:05]} Rg5 {[%emt 0:00:37]} 36. g4 {[%emt 0:00:10]} h5 {[%emt 0:00:19]} 37. h3 {[%emt 0:00:19]} hxg4 {[%emt 0:03:12]} 38. hxg4 {[%emt 0:00:04]} Re5+ {[%emt 0:00:00]} 39. Kf3 {[%emt 0:00:21]} Rd5 {[%emt 0:00:00]} 40. Ke4 {[%emt 0:00:29]} Re5+ {[%emt 0:00:00]} 41. Kf3 {[%emt 0:01:19]} a4 {[%emt 0:00:20]} 42. c4 {[%emt 0:00:00]} bxc4 {[%emt 0:00:00]} 43. Rxc4 {[%emt 0:00:00]} Rb5 {[%emt 0:00:00]} 44. Rxa4 {[%emt 0:00:00]} Rxb2 {[%emt 0:00:00]} 45. Ra7 {[%emt 0:00:00]} g5 {[%emt 0:00:00]} 46. Ra6 {[%emt 0:00:00]} Ke5 {[%emt 0:00:00]} 47. Ra5+ {[%emt 0:00:00]} d5 {[%emt 0:00:00]} 48. Ra4 {[%emt 0:00:00]} Rb3+ {[%emt 0:00:00]} 49. Kf2 {[%emt 0:00:00]} d4 {[%emt 0:00:00]} 50. Ra8 {[%emt 0:00:14]} Kf4 {[%emt 0:00:00]} 51. Rd8 {[%emt 0:00:13]} Ke4 {[%emt 0:00:00]} 52. a4 {[%emt 0:00:05]} Rb2+ {[%emt 0:00:00]} 53. Ke1 {[%emt 0:00:13]} Ra2 {[%emt 0:00:00]} 54. Rg8 {[%emt 0:00:09]} Ke3 {[%emt 0:00:00]} 55. Kd1 {[%emt 0:00:07]} Ra1+ {[%emt 0:00:00]} 56. Kc2 {[%emt 0:00:02]} d3+ {[%emt 0:00:00]} 57. Kc3 {[%emt 0:00:01]} Rc1+ {[%emt 0:00:00]} 58. Kb2 {[%emt 0:00:01]} d2 {[%emt 0:00:00]} 59. Re8+ {[%emt 0:00:01]} Kf4 {[%emt 0:00:00]} 0-1

[Event "Rapid Shavuot-A 2023"]
[Site "Ramat Gan"]
[Date "2023.05.25"]
[Round "5.15"]
[White "Kinberg, Ofer"]
[Black "Adar, Idan"]
[Result "0-1"]
[ECO "A62"]
[WhiteElo "1918"]
[BlackElo "2085"]
[Annotator "NA RC"]
[PlyCount "89"]
[EventDate "2023.05.19"]
[EventType "swiss"]
[EventCountry "ISR"]
[SourceTitle "playchess.com"]
[Source "ChessBase"]
[SourceQuality "1"]
[TimeControl "900+5"]

1. d4 {[%emt 0:00:03]} Nf6 {[%emt 0:00:02]} 2. c4 {[%emt 0:00:01]} c5 {[%emt 0:00:02]} 3. d5 {[%emt 0:00:01]} e6 {[%emt 0:00:01]} 4. Nc3 {[%emt 0:00:02]} exd5 5. cxd5 {[%emt 0:00:01]} d6 {[%emt 0:00:02]} 6. g3 {[%emt 0:00:05]} g6 {[%emt 0:00:04]} 7. Bg2 {[%emt 0:00:02]} Bg7 {[%emt 0:00:01]} 8. Nf3 {[%emt 0:00:07]} O-O {[%emt 0:00:03]} 9. O-O {[%emt 0:00:03]} Re8 {[%emt 0:00:02]} 10. Bf4 {[%emt 0:00:02]} Bf5 {[%emt 0:00:11]} 11. Nd2 {[%emt 0:00:30]} Nh5 {[%emt 0:00:10]} 12. Be3 {[%emt 0:04:22]} Na6 {[%emt 0:00:25]} 13. Nde4 {[%emt 0:02:05]} b5 {[%emt 0:01:33]} 14. Nd2 {[%emt 0:01:55]} Rb8 {[%emt 0:00:59]} 15. Qc1 {[%emt 0:00:52]} Nb4 {[%emt 0:00:49]} 16. Be4 {[%emt 0:01:28]} Bxe4 {[%emt 0:04:12]} 17. Ndxe4 {[%emt 0:00:02]} Nxd5 {[%emt 0:00:10]} 18. Nxd5 {[%emt 0:02:02]} Rxe4 {[%emt 0:00:02]} 19. Rd1 {[%emt 0:00:36]} Qe8 {[%emt 0:02:12]} 20. Qd2 {[%emt 0:01:13]} Qc6 {[%emt 0:00:43]} 21. f3 {[%emt 0:00:23]} Re6 {[%emt 0:00:22]} 22. Rac1 {[%emt 0:00:02]} Rbe8 {[%emt 0:00:15]} 23. Re1 {[%emt 0:00:09]} Re5 {[%emt 0:01:39]} 24. Rcd1 {[%emt 0:00:02]} Rxd5 {[%emt 0:00:07]} 25. Qxd5 {[%emt 0:00:08]} Qxd5 {[%emt 0:00:01]} 26. Rxd5 {[%emt 0:00:00]} Rxe3 {[%emt 0:00:02]} 27. Rxd6 {[%emt 0:01:04]} Bxb2 {[%emt 0:00:36]} 28. Kf1 {[%emt 0:00:00]} c4 {[%emt 0:01:07]} 29. Rc6 {[%emt 0:00:00]} Ra3 {[%emt 0:00:16]} 30. Rd1 {[%emt 0:00:00]} Rxa2 {[%emt 0:00:25]} 31. Rd7 {[%emt 0:00:05]} Nf6 {[%emt 0:00:23]} 32. Rdd6 {[%emt 0:00:06]} Kg7 {[%emt 0:00:07]} 33. g4 {[%emt 0:00:02]} h6 {[%emt 0:00:09]} 34. h4 {[%emt 0:00:22]} Ra1+ {[%emt 0:00:12]} 35. Kf2 {[%emt 0:00:00]} a5 {[%emt 0:00:25]} 36. g5 {[%emt 0:00:00]} hxg5 {[%emt 0:00:02]} 37. hxg5 {[%emt 0:00:00]} Nh7 {[%emt 0:00:10]} 38. f4 {[%emt 0:00:00]} c3 {[%emt 0:00:06]} 39. Rd7 {[%emt 0:00:00]} Nf8 {[%emt 0:00:01]} 40. Rb7 {[%emt 0:00:02]} Rd1 {[%emt 0:00:09]} 41. Rcc7 {[%emt 0:00:03]} Rd7 {[%emt 0:00:01]} 42. Rxd7 {[%emt 0:00:29]} Nxd7 {[%emt 0:00:01]} 43. Rxd7 {[%emt 0:00:03]} c2 {[%emt 0:00:02]} 44. f5 {[%emt 0:00:02]} gxf5 {[%emt 0:00:03]} 45. Ke1 {[%emt 0:00:16]} 0-1